bitfinex/quotes_SOLUSD_20250719
["timestamp","ask_amount","ask_price","bid_price","bid_amount"]
[1752911910026,41.39306973,177.06,177.03,0.74]
[1752911911840,16.84468397,177.08,177.03,0.74]
[1752911911841,2.31306973,177.07,177.03,0.74]
[1752911912041,2.37306973,177.08,177.03,3.05306973]
[1752911912246,41.45306973,177.08,177.04,0.71]
[1752911912537,2.31306973,177.07,177.04,0.71]
[1752911919426,7.96062634,177.07,177.04,0.71]
[1752911921254,2.31306973,177.05,177.03,28.40962156]
[1752911921543,2.31306973,177.05,177.04,0.71]
[1752911922531,5.64755661,177.07,177.04,0.71]
[1752911922732,2.31306973,177.05,177.04,0.71]
[1752911930561,7.96119172,177.05,177.04,0.71]
[1752911930742,7.96119172,177.05,177.03,0.74]
[1752911930928,2.31306973,177.04,177.03,0.74]
[1752911932157,7.96151076,177.04,177.03,0.74]
[1752911933171,7.96151076,177.04,177.03,0.03]
[1752911936539,7.96151076,177.04,177.03,0.75]
[1752911940076,7.96151076,177.04,177.03,0.03]
[1752911940644,24.74619473,177.04,177.03,0.03]
[1752911942669,22.433125,177.04,177.03,0.03]
[1752911942872,24.74619473,177.04,177.03,0.75]
[1752911947677,7.96151076,177.04,177.03,0.75]
[1752911947987,2.31306973,177.04,177.03,0.75]
[1752911948152,2.31306973,177.06,177.03,0.75]
[1752911948468,41.35306973,177.06,177.03,0.75]
[1752911948855,2.31306973,177.05,177.03,0.75]
[1752911949570,2.31306973,177.04,177.03,0.75]
[1752911949971,2.31306973,177.04,177.03,0.03]
[1752911950700,19.0977537,177.04,177.03,0.03]
[1752911951071,24.74619473,177.04,177.03,0.03]
[1752911951256,24.74619473,177.04,177.03,0.75]
[1752911951455,7.96151076,177.04,177.03,0.75]
[1752911958078,7.96151076,177.04,177.03,0.03]
[1752911958488,7.96151076,177.04,177.03,0.75]
[1752911963791,2.31306973,177.04,177.03,0.75]
[1752911968594,2.31306973,177.05,177.03,0.75]
[1752911973226,41.35306973,177.06,177.03,0.75]
[1752911981488,2.31306973,177.05,177.03,0.75]
[1752911981987,2.31306973,177.05,177.03,0.03]
[1752911982193,2.31306973,177.05,177.04,0.67]
[1752911982717,2.31306973,177.05,177.03,0.03]
[1752911983020,2.31306973,177.04,177.03,0.03]
[1752911984793,2.31306973,177.04,177.03,0.7]
[1752911985815,7.96141662,177.05,177.03,0.7]
[1752911986117,24.74610059,177.05,177.03,0.7]
[1752911986316,44.6878614,177.06,177.04,0.67]
[1752911986506,2.31306973,177.05,177.04,0.67]
[1752911988622,2.31306973,177.05,177.03,0.7]
[1752911992415,47.00093113,177.06,177.04,0.67]
[1752911992919,47.00093113,177.06,177.04,0.7]
[1752911993341,47.00093113,177.06,177.05,0.67]
[1752911993910,41.35306973,177.06,177.05,0.67]
[1752911995320,2.31306973,177.06,177.05,0.67]
[1752911999441,2.31306973,177.06,177.04,0.69]
[1752912000436,7.96101006,177.06,177.04,0.69]
[1752912000747,7.96101006,177.06,177.04,0.03]
[1752912001043,7.96101006,177.06,177.05,0.66]
[1752912001651,7.96101006,177.06,177.04,0.69]
[1752912003267,2.31306973,177.05,177.04,0.69]
[1752912005146,7.96119172,177.05,177.04,0.69]
[1752912005443,5.64812199,177.05,177.04,0.69]
[1752912005646,5.647849,177.06,177.04,0.69]
[1752912005854,5.647849,177.06,177.05,0.66]
[1752912006144,7.96091873,177.06,177.05,0.66]
[1752912006348,7.96091873,177.06,177.04,0.03]
[1752912006552,2.31306973,177.05,177.04,0.69]
[1752912007045,7.96119172,177.05,177.04,0.03]
[1752912007629,5.64812199,177.05,177.04,0.03]
[1752912007940,7.96119172,177.05,177.04,0.03]
[1752912008123,5.64812199,177.05,177.04,0.03]
[1752912008324,7.96119172,177.05,177.04,0.03]
[1752912013655,7.96119172,177.05,177.04,0.69]
[1752912014040,7.96119172,177.05,177.04,0.03]
[1752912015254,24.74587569,177.05,177.04,0.03]
[1752912015835,63.78587569,177.05,177.04,0.03]
[1752912024867,73.03815461,177.05,177.04,0.03]
[1752912025546,11.56534865,177.04,177.03,0.03]
[1752912026471,17.21378968,177.04,177.03,0.03]
[1752912027147,33.99847365,177.04,177.03,0.03]
[1752912027369,48.11957622,177.04,177.0,0.03]
[1752912027566,19.0977537,177.01,177.0,0.03]
[1752912027869,58.1577537,177.01,177.0,0.03]
[1752912028264,63.80715203,177.01,177.0,0.03]
[1752912033972,2.31306973,177.01,177.0,0.71]
[1752912034148,41.41306973,177.01,177.0,0.71]
[1752912036069,47.06246806,177.01,177.0,0.71]
[1752912036270,63.84715203,177.01,177.0,0.71]
[1752912036471,63.84715203,177.01,177.0,0.03]
[1752912039450,63.84715203,177.01,177.0,0.71]
[1752912043853,63.84715203,177.01,177.0,0.03]
[1752912056972,61.5340823,177.01,177.0,0.03]
[1752912057166,63.84715203,177.01,177.0,0.75]
[1752912057582,58.1977537,177.01,177.0,0.75]
[1752912057876,39.1,177.01,177.0,0.75]
[1752912058081,39.12,177.02,177.0,0.75]
[1752912058280,41.43306973,177.02,177.0,0.75]
[1752912060585,44.7690961,177.02,177.0,0.75]
[1752912060790,2.31306973,177.01,177.0,0.75]
[1752912061291,19.0977537,177.01,177.0,0.03]
[1752912061479,24.74715203,177.01,177.0,0.03]
[1752912069701,29.15265148,177.01,177.0,0.03]
[1752912082419,16.78468397,177.0,176.99,1e-08]
[1752912082611,26.0,176.98,176.97,0.03]
[1752912082807,67.41306973,176.98,176.97,0.03]
[1752912083114,84.1977537,176.98,176.97,0.03]
[1752912084913,89.84810967,176.98,176.97,0.03]
[1752912085520,94.07452063,176.98,176.97,0.03]
[1752912086611,89.84810967,176.98,176.97,0.03]
[1752912086807,94.07349888,176.98,176.97,0.03]
[1752912089732,94.07104743,176.98,176.97,0.03]
[1752912091799,94.07104743,176.98,176.96,0.03]
[1752912091800,16.78468397,176.97,176.96,0.03]
[1752912091999,23.31952806,176.97,176.96,0.03]
[1752912092203,32.57180698,176.97,176.95,0.2]
[1752912092402,67.45003262,176.96,176.95,0.2]
[1752912093373,67.45003262,176.96,176.94,0.2]
[1752912093374,16.78468397,176.95,176.94,0.2]
[1752912093498,32.56965862,176.95,176.94,0.2]
[1752912094008,38.22097255,176.95,176.94,0.2]
[1752912094210,34.00134655,176.95,176.94,0.2]
[1752912095242,24.74906763,176.95,176.94,0.92]
[1752912095531,61.5159979,176.95,176.94,0.92]
[1752912095699,63.82906763,176.95,176.94,0.92]
[1752912097253,47.04438366,176.95,176.94,0.92]
[1752912100355,44.73131393,176.95,176.94,0.92]
[1752912100558,47.04438366,176.95,176.94,0.92]
[1752912106127,39.08,176.95,176.94,0.92]
[1752912107759,2.31306973,176.96,176.94,0.92]
[1752912107940,41.39306973,176.96,176.95,0.72]
[1752912108362,39.08,176.96,176.95,0.72]
[1752912108965,41.39306973,176.96,176.95,0.72]
[1752912110150,39.08,176.96,176.95,0.72]
[1752912110546,39.1,176.97,176.95,0.72]
[1752912111461,7.96344616,176.98,176.95,0.72]
[1752912111647,47.06344616,176.98,176.95,0.72]
[1752912112470,39.1,176.98,176.95,0.72]
[1752912113447,41.41306973,176.98,176.95,0.72]
[1752912117368,39.1,176.98,176.95,3.03306973]
[1752912117740,39.1,176.98,176.95,2.31306973]
[1752912118055,39.1,176.98,176.96,0.67]
[1752912118266,41.39306973,176.99,176.96,0.67]
[1752912118971,39.08,176.99,176.96,0.67]
[1752912119169,41.39306973,176.99,176.96,0.67]
[1752912120678,2.31306973,176.98,176.96,0.67]
[1752912120879,2.31306973,176.97,176.96,0.67]
[1752912121177,47.04374498,176.97,176.95,0.67]
[1752912121341,2.31306973,176.96,176.95,0.67]
[1752912122581,7.9640643,176.96,176.95,0.67]
[1752912122757,24.74874827,176.96,176.94,0.2]
[1752912122963,41.41306973,176.95,176.94,0.2]
[1752912123871,58.1977537,176.95,176.94,0.2]
[1752912124866,63.84906763,176.95,176.94,0.2]
[1752912125085,63.84906763,176.95,176.94,0.87]
[1752912126859,63.84906763,176.95,176.94,0.2]
[1752912129963,73.10134655,176.95,176.94,0.2]
[1752912130281,77.32593958,176.95,176.94,0.2]
[1752912131089,73.00720593,176.95,176.94,0.2]
[1752912133617,68.7826129,176.95,176.94,0.2]
[1752912137741,26.0593054,176.95,176.94,0.87]
[1752912137906,65.1793054,176.95,176.94,0.87]
[1752912138106,61.5559979,176.95,176.94,0.87]
[1752912138302,65.1793054,176.95,176.94,0.87]
[1752912140942,65.1793054,176.95,176.94,0.2]
[1752912142021,65.1793054,176.95,176.94,0.87]
[1752912143847,42.7433075,176.95,176.94,0.87]
[1752912144152,39.12,176.95,176.94,0.87]
[1752912144721,3.6233075,176.96,176.94,0.87]
[1752912144923,39.14,176.96,176.95,0.67]
[1752912145247,42.7633075,176.96,176.95,0.67]
[1752912157082,41.45713654,176.96,176.95,0.67]
[1752912167423,2.37713654,176.99,176.95,0.67]
[1752912167625,39.1,176.98,176.95,2.98713654]
[1752912167791,39.1,176.98,176.96,0.68]
[1752912168431,41.41713654,176.98,176.96,0.68]
[1752912168792,41.41713654,176.98,176.97,0.68]
[1752912169599,39.1,176.98,176.97,0.68]
[1752912171416,44.75035597,176.98,176.97,0.68]
[1752912171603,47.06749251,176.98,176.97,0.68]
[1752912176504,47.06749251,176.98,176.96,0.69]
[1752912176706,2.31713654,176.97,176.94,0.89]
[1752912176935,39.08,176.96,176.95,0.69]
[1752912177124,41.39713654,176.96,176.95,0.69]
[1752912178422,47.04824571,176.96,176.94,0.2]
[1752912178629,2.31713654,176.95,176.94,0.2]
[1752912179437,19.10182051,176.95,176.94,0.2]
[1752912179740,24.75313444,176.95,176.94,0.2]
[1752912181325,34.0216806,176.95,176.94,0.2]
[1752912182300,34.0216806,176.95,176.94,1e-08]
[1752912182505,60.0216806,176.95,176.94,1e-08]
[1752912182809,34.0216806,176.95,176.94,1e-08]
[1752912186431,22.4359979,176.95,176.94,0.69000001]
[1752912186633,24.75313444,176.95,176.94,0.69000001]
[1752912186938,44.73131393,176.95,176.94,0.69000001]
[1752912188348,39.08,176.95,176.94,0.69000001]
[1752912188524,24.75222539,176.98,176.94,3.00713655]
[1752912188847,39.1,176.97,176.95,0.69]
[1752912189837,44.75068534,176.97,176.95,0.69]
[1752912191067,48.37022399,176.97,176.95,0.69]
[1752912191835,48.37022399,176.97,176.96,0.69]
[1752912195254,48.37022399,176.97,176.94,0.69000001]
[1752912195439,3.61953865,176.95,176.94,0.69000001]
[1752912195751,42.71953865,176.95,176.94,0.69000001]
[1752912195955,42.71953865,176.95,176.94,1e-08]
[1752912196550,39.1,176.95,176.94,0.69000001]
[1752912196719,42.71953865,176.95,176.94,0.69000001]
[1752912197653,39.1,176.95,176.94,0.69000001]
[1752912201456,48.37085258,176.95,176.94,0.69000001]
[1752912202566,48.37085258,176.95,176.94,1e-08]
[1752912204358,65.15553655,176.95,176.94,1e-08]
[1752912205439,65.15553655,176.95,176.94,0.69000001]
[1752912205766,65.21553655,176.95,176.94,0.69000001]
[1752912207156,48.43085258,176.95,176.94,0.69000001]
[1752912207360,44.81131393,176.95,176.94,0.69000001]
[1752912209038,0.06,176.95,176.94,0.69000001]
[1752912209237,39.22,176.95,176.94,0.69000001]
[1752912209438,0.06,176.95,176.94,0.69000001]
[1752912212374,0.06,176.95,176.94,4.30953866]
[1752912213440,0.06,176.95,176.94,9.96117198]
[1752912216075,0.06,176.95,176.94,100.33385687]
[1752912216961,0.06,176.95,176.94,103.95339552]
[1752912217489,0.06,176.95,176.94,77.95339552]
[1752912217684,0.06,176.99,176.94,77.95339552]
[1752912217685,0.06,176.99,176.98,3.61953865]
[1752912217851,0.06,176.99,176.98,42.75953865]
[1752912218052,0.06,176.99,176.98,43.45953865]
[1752912220059,0.06,176.99,176.98,39.84]
[1752912220262,0.06,176.99,176.98,43.45953865]
[1752912221655,0.06,176.99,176.98,71.83916021]
[1752912223281,0.06,176.99,176.98,77.48951618]
[1752912224760,0.06,176.99,176.98,74.66385921]
[1752912226094,0.06,176.99,176.98,108.54385921]
[1752912226293,0.06,176.99,176.98,109.1088948]
[1752912230188,0.06,176.99,176.98,29.07962156]
[1752912236594,0.06,176.99,176.98,0.7]
[1752912241068,0.06,176.99,176.98,4.31953865]
[1752912241673,0.06,176.99,176.98,49.06989462]
[1752912241908,0.06,177.0,176.98,49.06989462]
[1752912242073,0.06,177.0,176.99,4.18454232]
[1752912242278,0.06,177.0,176.99,33.21416388]
[1752912243397,0.06,177.0,176.99,38.8642006]
[1752912250493,0.06,177.0,176.99,40.5048006]
[1752912252103,0.06,177.0,176.99,57.28948457]
[1752912252412,0.06,177.03,177.02,26.0]
[1752912252699,0.06,177.03,177.02,97.19916021]
[1752912252908,0.06,177.03,177.02,98.41406813]
[1752912253111,0.06,177.03,177.02,118.81829075]
[1752912253280,0.06,177.03,177.02,119.78898283]
[1752912254106,0.06,177.03,177.02,131.86376203]
[1752912254610,0.06,177.07,177.03,16.78468397]
[1752912254820,0.06,177.07,177.03,53.61825883]
[1752912256196,0.06,177.07,177.03,59.26701892]
[1752912257291,0.06,177.07,177.03,38.8627963]
[1752912257498,0.06,177.07,177.03,78.0827963]
[1752912260511,0.06,177.07,177.03,111.9627963]
[1752912263418,0.06,177.07,177.03,71.78403621]
[1752912263595,0.12,177.07,177.03,71.78403621]
[1752912263798,0.12,177.07,177.03,72.43403621]
[1752912263998,0.06,177.07,177.03,72.43403621]
[1752912266923,3.73953865,177.07,177.03,67.59962156]
[1752912267107,3.61953865,177.06,177.03,67.59962156]
[1752912267310,3.61953865,177.05,177.03,67.59962156]
[1752912268023,0.06,177.07,177.03,78.1127963]
[1752912270101,3.67953865,177.07,177.03,72.46403621]
[1752912270625,3.67953865,177.07,177.03,105.66403621]
[1752912271217,3.67953865,177.07,177.03,106.34403621]
[1752912272020,3.61953865,177.06,177.03,101.47962156]
[1752912272202,3.73953865,177.07,177.03,102.15962156]
[1752912274223,0.06,177.07,177.03,105.77916021]
[1752912274413,0.06,177.07,177.03,111.9927963]
[1752912277530,0.06,177.07,177.03,63.50449756]
[1752912277701,0.06,177.07,177.03,111.9727963]
[1752912278802,0.06,177.07,177.03,102.70449756]
[1752912279004,0.06,177.07,177.03,106.32403621]
[1752912280427,3.67953865,177.07,177.03,102.70449756]
[1752912281519,3.61953865,177.06,177.03,101.45962156]
[1752912281718,3.61953865,177.05,177.03,62.25962156]
[1752912281927,3.61953865,177.05,177.03,101.45962156]
[1752912282811,3.67953865,177.04,177.03,101.45962156]
[1752912283615,3.67953865,177.04,177.03,101.19822456]
[1752912285921,0.06,177.04,177.03,101.19822456]
[1752912286125,3.67953865,177.04,177.03,101.19822456]
[1752912286908,0.06,177.04,177.03,101.19822456]
[1752912287232,3.67953865,177.04,177.03,101.19822456]
[1752912288550,0.06,177.04,177.03,101.19822456]
[1752912289143,3.61953865,177.05,177.03,101.19822456]
[1752912289326,3.61953865,177.05,177.03,101.87822456]
[1752912290939,3.61953865,177.05,177.03,101.90822456]
[1752912291234,0.06,177.04,177.03,101.90822456]
[1752912292541,0.06,177.04,177.03,105.52776321]
[1752912292745,0.06,177.04,177.03,111.1765233]
[1752912293712,0.06,177.04,177.03,107.55698465]
[1752912294242,0.06,177.04,177.03,111.1765233]
[1752912294747,0.06,177.04,177.03,107.55698465]
[1752912294912,0.06,177.04,177.03,111.1765233]
[1752912316044,0.06,177.04,177.03,111.7413993]
[1752912317167,0.06,177.04,177.03,110.43478971]
[1752912319053,0.06,177.04,177.03,111.73600615]
[1752912320544,0.06,177.04,177.03,101.75310056]
[1752912321349,0.06,177.04,177.03,111.69600615]
[1752912321581,0.06,177.04,177.03,105.36724606]
[1752912322581,0.06,177.04,177.03,101.75310056]
[1752912323296,0.06,177.04,177.03,101.18822456]
[1752912324363,0.06,177.04,177.03,101.86822456]
[1752912326789,0.06,177.04,177.03,101.18822456]
[1752912327790,0.06,177.04,177.03,101.86822456]
[1752912328488,0.06,177.04,177.03,111.69600615]
[1752912332560,0.06,177.04,177.03,128.48069012]
[1752912332760,0.06,177.04,177.03,127.91581412]
[1752912334302,0.06,177.07,177.03,147.18175986]
[1752912334611,0.06,177.07,177.06,54.27882947]
[1752912334880,0.06,177.07,177.06,54.11822456]
[1752912335297,0.06,177.07,177.06,55.36300486]
[1752912335470,0.06,177.07,177.06,58.97715036]
[1752912336202,0.06,177.07,177.06,64.62495336]
[1752912336955,0.06,177.07,177.06,61.01080786]
[1752912337160,0.06,177.07,177.06,64.62495336]
[1752912337709,0.06,177.07,177.06,60.33080786]
[1752912339212,3.6741455,177.07,177.03,0.03]
[1752912339520,3.6141455,177.04,177.03,0.03]
[1752912339714,24.01297497,177.04,177.03,0.03]
[1752912339928,5.1842455,177.04,177.03,0.03]
[1752912341275,10.83268653,177.04,177.03,0.03]
[1752912347712,3.6141455,177.04,177.03,0.03]
[1752912348121,3.6141455,177.04,177.03,0.71]
[1752912348723,3.6141455,177.04,177.03,0.03]
[1752912352616,3.6141455,177.05,177.03,0.03]
[1752912352819,3.6141455,177.05,177.03,0.71]
[1752912353537,3.6141455,177.05,177.04,0.68]
[1752912353834,3.6741455,177.07,177.04,0.68]
[1752912354006,3.6741455,177.07,177.05,39.28]
[1752912354537,3.6741455,177.07,177.05,39.96]
[1752912354903,0.06,177.07,177.05,39.96]
[1752912355333,0.06,177.07,177.06,0.68]
[1752912358051,0.06,177.07,177.06,6.327803]
[1752912358254,0.06,177.07,177.06,38.06017306]
[1752912360456,0.06,177.07,177.06,28.79822456]
[1752912360669,3.6741455,177.07,177.06,28.11822456]
[1752912360872,3.6741455,177.07,177.06,67.37822456]
[1752912361034,3.6741455,177.07,177.06,28.11822456]
[1752912363056,3.6741455,177.07,177.06,28.78822456]
[1752912363362,0.06,177.07,177.06,28.78822456]
[1752912364760,0.06,177.07,177.06,34.43602756]
[1752912365742,0.06,177.07,177.06,60.43602756]
[1752912365957,0.06,177.07,177.06,64.05017306]
[1752912369240,0.06,177.07,177.06,97.92017306]
[1752912369441,0.06,177.07,177.06,98.48495336]
[1752912370537,0.06,177.07,177.06,72.48495336]
[1752912372805,0.06,177.08,177.06,237.96963733]
[1752912372972,0.06,177.08,177.07,94.21882947]
[1752912374092,0.06,177.08,177.07,100.43106191]
[1752912374481,0.06,177.11,177.1,26.0]
[1752912374792,0.06,177.11,177.1,131.44702279]
[1752912374997,0.06,177.11,177.1,131.55237006]
[1752912375781,0.06,177.11,177.1,137.19889744]
[1752912380795,0.06,177.11,177.1,153.98358141]
[1752912381711,0.06,177.11,177.1,150.36943591]
[1752912382001,0.06,177.11,177.1,153.98358141]
[1752912383799,0.06,177.11,177.1,150.36943591]
[1752912384004,0.06,177.11,177.1,153.98358141]
[1752912384805,0.06,177.11,177.1,150.36943591]
[1752912385114,0.06,177.11,177.1,137.19889744]
[1752912385482,0.06,177.11,177.1,133.58475194]
[1752912385811,0.06,177.11,177.1,132.91475194]
[1752912386302,0.06,177.11,177.1,133.61475194]
[1752912386543,0.06,177.11,177.1,137.22889744]
[1752912387634,0.06,177.11,177.1,133.61475194]
[1752912388002,0.06,177.11,177.1,132.91475194]
[1752912388626,0.06,177.11,177.1,87.98822456]
[1752912388821,3.6741455,177.11,177.1,127.24822456]
[1752912389232,0.06,177.11,177.1,127.24822456]
[1752912395213,0.06,177.11,177.1,93.37822456]
[1752912395419,3.6741455,177.11,177.1,67.37822456]
[1752912395619,3.6741455,177.11,177.1,28.11822456]
[1752912396348,0.06,177.11,177.1,28.11822456]
[1752912396647,3.6741455,177.11,177.1,28.11822456]
[1752912397218,0.06,177.11,177.1,28.11822456]
[1752912397428,3.6741455,177.11,177.1,28.11822456]
[1752912397837,0.06,177.11,177.1,28.11822456]
[1752912398039,3.6741455,177.11,177.1,28.11822456]
[1752912399142,3.6741455,177.11,177.09,68.07822456]
[1752912400437,3.6141455,177.1,177.09,67.37822456]
[1752912400621,3.6141455,177.1,177.09,68.07822456]
[1752912401231,3.6741455,177.11,177.09,68.07822456]
[1752912401432,0.06,177.11,177.1,0.7]
[1752912402569,0.06,177.11,177.1,6.34652738]
[1752912402739,0.06,177.11,177.1,0.7]
[1752912405038,0.06,177.11,177.1,28.81822456]
[1752912410345,0.06,177.11,177.1,28.11822456]
[1752912410551,3.6741455,177.11,177.1,28.11822456]
[1752912415546,3.6741455,177.11,177.1,28.81822456]
[1752912416160,3.6741455,177.11,177.1,62.68822456]
[1752912416878,0.06,177.11,177.1,62.68822456]
[1752912420688,3.6741455,177.11,177.1,61.98822456]
[1752912420890,3.6741455,177.11,177.09,39.26]
[1752912421095,3.6141455,177.1,177.08,28.14822456]
[1752912421272,3.6141455,177.09,177.08,28.14822456]
[1752912422874,0.06,177.11,177.08,28.14822456]
[1752912423207,3.6141455,177.09,177.08,28.14822456]
[1752912423374,3.6141455,177.09,177.08,28.79822456]
[1752912425619,3.6741455,177.11,177.08,28.79822456]
[1752912425816,3.6741455,177.11,177.09,39.2]
[1752912425992,3.6741455,177.11,177.09,39.85]
[1752912426190,3.6741455,177.11,177.1,0.65]
[1752912428896,3.6741455,177.11,177.09,73.72]
[1752912429091,3.6141455,177.1,177.09,73.72]
[1752912430426,3.6141455,177.1,177.09,73.07]
[1752912431816,3.6141455,177.1,177.09,101.18822456]
[1752912435451,3.6141455,177.1,177.09,67.31822456]
[1752912435752,3.6141455,177.1,177.09,67.96822456]
[1752912439045,2.31321421,177.1,177.09,67.96822456]
[1752912440962,2.37321421,177.1,177.09,67.96822456]
[1752912441659,2.37321421,177.1,177.09,68.13958004]
[1752912449580,2.37321421,177.1,177.09,40.02135548]
[1752912450086,0.06,177.1,177.09,40.02135548]
[1752912450796,2.37321421,177.1,177.09,40.02135548]
[1752912460706,0.06,177.1,177.09,40.02135548]
[1752912461975,2.37321421,177.1,177.09,0.17135548]
[1752912462902,8.01974159,177.1,177.09,0.17135548]
[1752912472915,5.70652738,177.1,177.09,0.89135548]
[1752912473100,8.01974159,177.1,177.09,0.89135548]
[1752912473802,8.01974159,177.1,177.09,0.17135548]
[1752912473984,24.80442556,177.1,177.08,0.03]
[1752912474184,2.31321421,177.09,177.08,0.03]
[1752912475196,2.31321421,177.09,177.04,0.03]
[1752912475409,2.31321421,177.05,177.04,0.03]
[1752912475802,7.9613362,177.05,177.04,0.03]
[1752912477502,7.9613362,177.05,177.04,0.73]
[1752912477811,19.76548742,177.08,177.04,0.73]
[1752912478013,2.31321421,177.05,177.04,0.03]
[1752912478613,2.31321421,177.05,177.04,0.73]
[1752912478807,2.31321421,177.05,177.04,0.03]
[1752912479001,7.9613362,177.05,177.04,0.03]
[1752912481420,7.9613362,177.05,177.04,0.73]
[1752912481619,5.64812199,177.05,177.04,0.73]
[1752912482025,7.9613362,177.05,177.04,0.73]
[1752912482213,2.31321421,177.05,177.04,0.73]
[1752912482412,7.9613362,177.05,177.04,0.73]
[1752912487429,2.31321421,177.05,177.04,0.73]
[1752912489226,5.64716512,177.08,177.04,0.73]
[1752912489528,2.31321421,177.05,177.04,0.73]
[1752912490519,0.06,177.1,177.04,0.73]
[1752912490834,2.31321421,177.06,177.04,0.73]
[1752912491212,2.31321421,177.07,177.04,0.73]
[1752912492526,2.31321421,177.07,177.04,39.93]
[1752912492727,2.31321421,177.07,177.04,39.23]
[1752912492928,2.31321421,177.07,177.05,0.7]
[1752912493323,5.64710131,177.09,177.05,0.7]
[1752912493524,2.31321421,177.07,177.05,0.7]
[1752912495155,2.31321421,177.06,177.05,0.7]
[1752912495732,2.31321421,177.06,177.04,39.23]
[1752912496033,5.64692705,177.09,177.04,39.93]
[1752912496034,2.31321421,177.05,177.04,39.93]
[1752912496948,2.31321421,177.05,177.04,0.73]
[1752912497147,5.64787035,177.06,177.04,0.73]
[1752912497453,2.31321421,177.05,177.04,0.73]
[1752912498034,5.64751131,177.07,177.04,0.73]
[1752912498234,2.31321421,177.05,177.04,0.73]
[1752912500166,5.70657894,177.1,177.04,0.73]
[1752912500378,2.31321421,177.08,177.05,39.2]
[1752912500674,2.31321421,177.08,177.06,0.7]
[1752912503475,5.70657894,177.1,177.06,0.7]
[1752912503677,2.31321421,177.09,177.06,28.81822456]
[1752912503862,0.06,177.1,177.07,0.7]
[1752912503863,2.37321421,177.1,177.07,0.7]
[1752912504052,2.37321421,177.1,177.08,39.22]
[1752912504250,0.06,177.1,177.08,39.22]
[1752912504471,2.31321421,177.09,177.08,39.22]
[1752912504854,2.31321421,177.09,177.08,39.92]
[1752912516302,2.31321421,177.09,177.08,39.22]
[1752912518785,2.31321421,177.09,177.08,39.93]
[1752912520083,2.31321421,177.09,177.08,0.71]
[1752912522904,7.96006044,177.09,177.06,28.82822456]
[1752912523086,2.31321421,177.07,177.06,28.11822456]
[1752912523288,2.31321421,177.07,177.05,0.03]
[1752912523495,2.31321421,177.06,177.05,0.03]
[1752912525582,2.31321421,177.06,177.05,0.74]
[1752912534740,2.31321421,177.06,177.05,0.03]
[1752912535296,7.96101721,177.06,177.05,0.03]
[1752912541633,7.96101721,177.06,177.05,0.72]
[1752912541818,2.31321421,177.06,177.05,0.72]
[1752912542641,2.31321421,177.06,177.05,39.88]
[1752912542948,5.64692334,177.09,177.05,39.88]
[1752912543117,2.31321421,177.08,177.06,0.69]
[1752912545368,5.70661409,177.1,177.06,0.69]
[1752912545673,2.31321421,177.08,177.06,0.69]
[1752912547357,2.31321421,177.08,177.07,39.18]
[1752912547664,2.31321421,177.08,177.07,39.87]
[1752912549445,2.31321421,177.08,177.05,68.01822456]
[1752912549652,2.31321421,177.06,177.05,68.01822456]
[1752912550171,2.31321421,177.06,177.05,67.32822456]
[1752912551372,2.31321421,177.06,177.05,68.01822456]
[1752912553083,2.31321421,177.06,177.05,39.9]
[1752912554490,2.31321421,177.06,177.05,0.72]
[1752912557287,7.96101721,177.06,177.05,0.03]
[1752912558995,2.31321421,177.06,177.05,0.03]
[1752912559573,2.31321421,177.06,177.05,0.72]
[1752912559781,0.06,177.09,177.05,0.72]
[1752912559984,2.31321421,177.06,177.05,0.72]
[1752912562488,7.96101721,177.06,177.05,0.03]
[1752912565201,7.96101721,177.06,177.05,0.72]